Workbook

Sheet КИТАЕВ склерометр
D2: Кубы | R2: Кубы | U2: =IF(R2="Отрыв со скалыванием",2.5,"") ->  | V2: =IF(R2="Кубы",10,"") -> 10 | W2: =IF(R2="Кубы",0.95,"") -> 0.95 | X2: =IF(R2="Кубы",100,"") -> 100
D3: Отрыв со скалыванием | Y3: 0.9
B5: Наибольшее и наименьшее значение для отбраковки | D5: № | E5: Значение склерометра | O5: max | P5: min | Q5: Среднее значение по склерометру | S5: Разделение на группы | T5: Значение прочности кубов (КН), показания отрыва | V5: По градуировочной зависимости RiH | X5: Корректировка путем отбраковки RiH-Riф/Sт | Z5: Примечание | BB5: Для построения графика
AC7: ДО ОТБРАКОВКИ | AM7: ПОСЛЕ ОТБРАКОВКИ | AX7: Коэффициент корреляции град.зависимости | BB7: № | BC7: Среднее значение по склерометру | BD7: Значение ПИБ | BE7: Отбракованные показания
T8: Показания | U8: Показания Riф (Мпа) | V8: До отбраковки | W8: После отбраковки | X8: Отбраковывается | Y8: После отбраковки | AC8: Промежуточные данные для расчета а1 | AK8: Sт | AM8: Промежуточные данные для расчета а1 | AU8: Sт | AX8: =W59 -> 37.38358571 | BD8: Показания Riф (Мпа)
B9: =IFERROR(IF(O9>4,LARGE(E9:N9,1),""),"") ->  | C9: =IFERROR(IF(P9>4,SMALL(E9:N9,1),""),"") ->  | D9: 1 | E9: 22 | G9: 24 | H9: 20 | I9: 21 | J9: 21 | K9: 22 | M9: 25 | N9: 24 | O9: =IFERROR(MAX(E9:N9)-AVERAGE(E9:N9),"") -> 2.625 | P9: =IFERROR(AVERAGE(E9:N9)-MIN(E9:N9),"") -> 2.375 | Q9: =IFERROR(AVERAGE(E9:N9),"") -> 22.375 | S9: =IFERROR(IF(SUM(Q9:R9)=0,"",IF(SUM(Q9:R9)<=$Q$59,1,2)),"") -> 1 | T9: 349.8 | U9: =IF(T9="","",(IF($R$2=$D$2,((T9*$V$2)/$X$2)*$W$2,IF($R$2=$D$3,T9*$U$2,"")))) -> 33.231 | V9: =IF(SUM(Q9:R9)=0,"",$AH$9*SUM(Q9:R9)+($AG$11)) -> 30.8518385 | W9: =IF(SUM(Q9:R9)=0,"",$AR$9*SUM(Q9:R9)+($AQ$11)) -> 30.8518385 | X9: =IFERROR((V9-U9)/$AK$59,"") -> -0.4670845606 | Y9: =IFERROR((W9-U9)/$AU$59,"") -> -0.4670845606 | AA9: 1 | AC9: 1 | AD9: =IF(SUM(Q9:R9)=0,"",(SUM(Q9:R9)-$Q$59)*(U9-$U$59)) -> 37.72963108 | AE9: =IF(SUM(Q9:R9)=0,"",POWER((SUM(Q9:R9)-$Q$59),2)) -> 82.55205832 | AF9: а1= | AG9: =IF(AD59=0,"",AD59) -> 373.119459 | AH9: =IFERROR(AG9/AG10,"") -> 0.7188949213 | AJ9: 1 | AK9: =IFERROR(POWER(U9-V9,2),"") -> 5.660409439 | AM9: 1 | AN9: =IF(SUM(Q9:R9)=0,"",(SUM(Q9:R9)-$Q$59)*(U9-$U$59)) -> 37.72963108 | AO9: =IF(SUM(Q9:R9)=0,"",POWER((SUM(Q9:R9)-$Q$59),2)) -> 82.55205832 | AP9: а1= | AQ9: =IF(AN59=0,"",AN59) -> 373.119459 | AR9: =IFERROR(AQ9/AQ10,"") -> 0.7188949213 | AT9: 1 | AU9: =IFERROR(POWER(U9-W9,2),"") -> 5.660409439 | AW9: 1 | AX9: =IFERROR((W9-$W$59)*(U9-$W$59),"") -> 27.12364017 | AY9: =IFERROR(POWER((W9-$W$59),2),"") -> 42.66372166 | AZ9: =IFERROR(POWER((U9-$W$59),2),"") -> 17.24396811 | BB9: 1 | BC9: =IF(SUM(Q9:R9)=0,"",SUM(Q9:R9)) -> 22.375 | BD9: =IF(U9=0,"",U9) -> 33.231 | BE9: =IF(Z9="Отбраковывается",U9,"") -> 
B10: =IFERROR(IF(O10>4,LARGE(E10:N10,1),""),"") ->  | C10: =IFERROR(IF(P10>4,SMALL(E10:N10,1),""),"") ->  | D10: 2 | E10: 22 | F10: 25 | G10: 19 | H10: 24 | I10: 22 | J10: 21 | K10: 23 | L10: 20 | M10: 19 | N10: 20 | O10: =IFERROR(MAX(E10:N10)-AVERAGE(E10:N10),"") -> 3.5 | P10: =IFERROR(AVERAGE(E10:N10)-MIN(E10:N10),"") -> 2.5 | Q10: =IFERROR(AVERAGE(E10:N10),"") -> 21.5 | S10: =IFERROR(IF(SUM(Q10:R10)=0,"",IF(SUM(Q10:R10)<=$Q$59,1,2)),"") -> 1 | T10: 346.1 | U10: 32.8795 | V10: =IF(SUM(Q10:R10)=0,"",$AH$9*SUM(Q10:R10)+($AG$11)) -> 30.22280544 | W10: =IF(SUM(Q10:R10)=0,"",$AR$9*SUM(Q10:R10)+($AQ$11)) -> 30.22280544 | X10: =IFERROR((V10-U10)/$AK$59,"") -> -0.5215707338 | Y10: =IFERROR((W10-U10)/$AU$59,"") -> -0.5215707338 | AA10: =AA9+1 -> 2 | AC10: =AC9+1 -> 2 | AD10: =IF(SUM(Q10:R10)=0,"",(SUM(Q10:R10)-$Q$59)*(U10-$U$59)) -> 44.86437052 | AE10: =IF(SUM(Q10:R10)=0,"",POWER((SUM(Q10:R10)-$Q$59),2)) -> 99.21786189 | AG10: =IF(AE59=0,"",AE59) -> 519.0180761 | AJ10: =AJ9+1 -> 2 | AK10: =IFERROR(POWER(U10-V10,2),"") -> 7.05802596 | AM10: =AM9+1 -> 2 | AN10: 44.86437052 | AO10: 99.21786189 | AQ10: =IF(AO59=0,"",AO59) -> 519.0180761 | AT10: =AT9+1 -> 2 | AU10: 7.05802596 | AW10: =AW9+1 -> 2 | AX10: 32.25276812 | AY10: 51.27677407 | AZ10: 20.28678812 | BB10: =BB9+1 -> 2 | BC10: =IF(SUM(Q10:R10)=0,"",SUM(Q10:R10)) -> 21.5 | BD10: 32.8795
D11: 3 | G11: 28 | H11: 28 | K11: 26 | M11: 27 | O11: 0.75 | P11: 1.25 | Q11: 27.25 | S11: 1 | T11: 374.9 | U11: 35.6155 | V11: 34.35645124 | W11: 34.35645124 | X11: -0.2471804608 | Y11: -0.2471804608 | AA11: =AA10+1 -> 3 | AC11: =AC10+1 -> 3 | AD11: 7.445084192 | AE11: 17.73097414 | AF11: а0= | AG11: =IFERROR(U59-AH9*Q59,"") -> 14.76656464 | AJ11: =AJ10+1 -> 3 | AK11: 1.585203774 | AM11: =AM10+1 -> 3 | AN11: 7.445084192 | AO11: 17.73097414 | AP11: а0= | AQ11: =IFERROR(U59-AR9*Q59,"") -> 14.76656464 | AT11: =AT10+1 -> 3 | AU11: 1.585203774 | AW11: =AW10+1 -> 3 | AX11: 5.352233215 | AY11: 9.163543111 | AZ11: 3.126127093 | BB11: =BB10+1 -> 3 | BC11: 27.25 | BD11: 35.6155
B12: 35 | C12: 19 | D12: 4 | E12: 35 | G12: 27 | H12: 28 | J12: 27 | K12: 26 | L12: 19 | M12: 27 | O12: 8 | P12: 8 | Q12: 27 | S12: 1 | T12: 353.2 | U12: 33.554 | V12: 34.17672751 | W12: 34.17672751 | X12: 0.1222558479 | Y12: 0.1222558479 | AA12: =AA11+1 -> 4 | AC12: =AC11+1 -> 4 | AD12: 17.08307848 | AE12: 19.8988823 | AJ12: =AJ11+1 -> 4 | AK12: 0.3877895543 | AM12: =AM11+1 -> 4 | AN12: 17.08307848 | AO12: 19.8988823 | AT12: =AT11+1 -> 4 | AU12: 0.3877895543 | AW12: =AW11+1 -> 4 | AX12: 12.28093836 | AY12: 10.28393953 | AZ12: 14.66572674 | BB12: =BB11+1 -> 4 | BC12: 27 | BD12: 33.554
D13: 5 | G13: 30 | H13: 29 | J13: 30 | K13: 31 | L13: 34 | N13: 34 | O13: 2.666666667 | P13: 2.333333333 | Q13: 31.33333333 | S13: 1 | T13: 367.7 | U13: 34.9315 | V13: 37.29193884 | W13: 37.29193884 | X13: 0.4634088681 | Y13: 0.4634088681 | AA13: 5 | AC13: 5 | AD13: 0.3125992264 | AE13: 0.01625191355 | AF13: Уровнение градуировочной зависимости | AJ13: 5 | AK13: 5.571671508 | AM13: 5 | AN13: 0.3125992264 | AO13: 0.01625191355 | AP13: Уровнение градуировочной зависимости | AT13: 5 | AU13: 5.571671508 | AW13: 5 | AX13: 0.2247259963 | AY13: 0.008399149948 | AZ13: 6.01272435 | BB13: 5 | BC13: 31.33333333 | BD13: 34.9315
B14: 40 | C14: 25 | D14: 6 | E14: 36 | F14: 25 | G14: 35 | I14: 37 | K14: 35 | L14: 35 | M14: 40 | N14: 35 | O14: 5.25 | P14: 9.75 | Q14: 34.75 | S14: 2 | T14: 492 | U14: 46.74 | V14: 39.74816315 | W14: 39.74816315 | X14: -1.372659671 | Y14: -1.372659671 | AA14: 6 | AC14: 6 | AD14: 30.77496511 | AE14: 10.81872924 | AJ14: 6 | AK14: 48.8857825 | AM14: 6 | AN14: 30.77496511 | AO14: 10.81872924 | AT14: 6 | AU14: 48.8857825 | AW14: 6 | AX14: 22.12396612 | AY14: 5.591226461 | AZ14: 87.54248829 | BB14: 6 | BC14: 34.75 | BD14: 46.74
D15: 7 | E15: 31 | H15: 34 | J15: 34 | K15: 31 | L15: 30 | M15: 33 | O15: 1.833333333 | P15: 2.166666667 | Q15: 32.16666667 | S15: 2 | T15: 517 | U15: 49.115 | V15: 37.89101794 | W15: 37.89101794 | X15: -2.203527895 | Y15: -2.203527895 | AA15: 7 | AC15: 7 | AD15: 8.280622764 | AE15: 0.4982247027 | AF15: ="Rн = " & FIXED( AH9,2) & " * H + " & FIXED(AG11,2) -> Rн = 0,72 * H + 14,77 | AJ15: 7 | AK15: 125.9777733 | AM15: 7 | AN15: 8.280622764 | AO15: 0.4982247027 | AP15: ="Rн = " & FIXED(AR9,2) & " * H + " & FIXED(AQ11,2) -> Rн = 0,72 * H + 14,77 | AT15: 7 | AU15: 125.9777733 | AW15: 7 | AX15: 5.952897651 | AY15: 0.2574874627 | AZ15: 137.6260811 | BB15: 7 | BC15: 32.16666667 | BD15: 49.115
D16: 8 | F16: 32 | H16: 31 | K16: 36 | L16: 34 | M16: 33 | N16: 36 | O16: 2.333333333 | P16: 2.666666667 | Q16: 33.66666667 | S16: 2 | T16: 428 | U16: 40.66 | V16: 38.96936032 | W16: 38.96936032 | X16: -0.3319117646 | Y16: -0.3319117646 | AA16: 8 | AC16: 8 | AD16: 7.227279567 | AE16: 4.865775723 | AJ16: 8 | AK16: 2.858262524 | AM16: 8 | AN16: 7.227279567 | AO16: 4.865775723 | AT16: 8 | AU16: 2.858262524 | AW16: 8 | AX16: 5.195654576 | AY16: 2.514681103 | AZ16: 10.73489057 | BB16: 8 | BC16: 33.66666667 | BD16: 40.66
D17: 9 | E17: 31 | F17: 28 | G17: 28 | H17: 33 | I17: 29 | K17: 32 | N17: 32 | O17: 2.571428571 | P17: 2.428571429 | Q17: 30.42857143 | S17: 1 | T17: 360.6 | U17: 34.257 | V17: 36.6415101 | W17: 36.6415101 | X17: 0.4681346149 | Y17: 0.4681346149 | AA17: 9 | AC17: 9 | AD17: 3.227402152 | AE17: 1.065529529 | AJ17: 9 | AK17: 5.685888415 | AM17: 9 | AN17: 3.227402152 | AO17: 1.065529529 | AT17: 9 | AU17: 5.685888415 | AW17: 9 | AX17: 2.320163016 | AY17: 0.550676218 | AZ17: 9.775538229 | BB17: 9 | BC17: 30.42857143 | BD17: 34.257
D18: 10 | E18: 28 | G18: 29 | H18: 32 | J18: 29 | K18: 33 | L18: 29 | N18: 34 | O18: 3.428571429 | P18: 2.571428571 | Q18: 30.57142857 | S18: 1 | T18: 336 | U18: 31.92 | V18: 36.74420937 | W18: 36.74420937 | X18: 0.9471041443 | Y18: 0.9471041443 | AA18: 10 | AC18: 10 | AD18: 4.859246233 | AE18: 0.7910105789 | AJ18: 10 | AK18: 23.27299608 | AM18: 10 | AN18: 4.859246233 | AO18: 0.7910105789 | AT18: 10 | AU18: 23.27299608 | AW18: 10 | AX18: 3.493287439 | AY18: 0.4088021045 | AZ18: 29.85076886 | BB18: 10 | BC18: 30.57142857 | BD18: 31.92
C19: 19 | D19: 11 | F19: 30 | G19: 30 | H19: 29 | I19: 29 | J19: 19 | K19: 30 | L19: 30 | M19: 29 | N19: 28 | O19: 1.777777778 | P19: 9.222222222 | Q19: 28.22222222 | S19: 1 | T19: 364.6 | U19: 34.637 | V19: 35.05537686 | W19: 35.05537686 | X19: 0.08213707732 | Y19: 0.08213707732 | AA19: 11 | AC19: 11 | AD19: 8.895076301 | AE19: 10.48849177 | AJ19: 11 | AK19: 0.1750391973 | AM19: 11 | AN19: 8.895076301 | AO19: 10.48849177 | AT19: 11 | AU19: 0.1750391973 | AW19: 11 | AX19: 6.394625178 | AY19: 5.420556467 | AZ19: 7.543733086 | BB19: 11 | BC19: 28.22222222 | BD19: 34.637
D20: 12 | E20: 28 | G20: 33 | H20: 28 | I20: 29 | K20: 33 | L20: 34 | M20: 34 | N20: 34 | O20: 2.375 | P20: 3.625 | Q20: 31.625 | S20: 2 | T20: 410 | U20: 38.95 | V20: 37.50161652 | W20: 37.50161652 | X20: -0.2843512557 | Y20: -0.2843512557 | AA20: 12 | AC20: 12 | AD20: 0.2571796516 | AE20: 0.02695627863 | AJ20: 12 | AK20: 2.097814696 | AM20: 12 | AN20: 0.2571796516 | AO20: 0.02695627863 | AT20: 12 | AU20: 2.097814696 | AW20: 12 | AX20: 0.1848851454 | AY20: 0.01393127188 | AZ20: 2.453653714 | BB20: 12 | BC20: 31.625 | BD20: 38.95
D21: 13 | F21: 25 | G21: 23 | H21: 26 | J21: 30 | K21: 28 | M21: 24 | N21: 28 | O21: 3.714285714 | P21: 3.285714286 | Q21: 26.28571429 | S21: 1 | T21: 333.5 | U21: 31.6825 | V21: 33.66323114 | W21: 33.66323114 | X21: 0.3888634439 | Y21: 0.3888634439 | AA21: 13 | AC21: 13 | AD21: 29.50370031 | AE21: 26.78168113 | AJ21: 13 | AK21: 3.923295848 | AM21: 13 | AN21: 29.50370031 | AO21: 26.78168113 | AT21: 13 | AU21: 3.923295848 | AW21: 13 | AX21: 21.21006032 | AY21: 13.84103816 | AZ21: 32.50237832 | BB21: 13 | BC21: 26.28571429 | BD21: 31.6825
B22: 40 | C22: 24 | D22: 14 | E22: 26 | G22: 29 | H22: 40 | J22: 28 | K22: 28 | L22: 24 | M22: 28 | N22: 28 | O22: 11.125 | P22: 4.875 | Q22: 28.875 | S22: 1 | T22: 352.6 | U22: 33.497 | V22: 35.52465549 | W22: 35.52465549 | X22: 0.3980757816 | Y22: 0.3980757816 | AA22: 14 | AC22: 14 | AD22: 10.04999679 | AE22: 6.686446075 | AJ22: 14 | AK22: 4.111386785 | AM22: 14 | AN22: 10.04999679 | AO22: 6.686446075 | AT22: 14 | AU22: 4.111386785 | AW22: 14 | AX22: 7.224891655 | AY22: 3.45562158 | AZ22: 15.10554851 | BB22: 14 | BC22: 28.875 | BD22: 33.497
D23: 15 | F23: 37 | G23: 34 | H23: 33 | I23: 33 | K23: 38 | L23: 35 | M23: 32 | O23: 3.428571429 | P23: 2.571428571 | Q23: 34.57142857 | S23: 2 | T23: 447 | U23: 42.465 | V23: 39.61978906 | W23: 39.61978906 | X23: -0.5585808708 | Y23: -0.5585808708 | AA23: 15 | AC23: 15 | AD23: 15.8063095 | AE23: 9.675908538 | AJ23: 15 | AK23: 8.095225296 | AM23: 15 | AN23: 15.8063095 | AO23: 9.675908538 | AT23: 15 | AU23: 8.095225296 | AW23: 15 | AX23: 11.36307562 | AY23: 5.000605401 | AZ23: 25.82077114 | BB23: 15 | BC23: 34.57142857 | BD23: 42.465
D24: 16 | E24: 36 | F24: 37 | G24: 36 | H24: 41 | I24: 36 | J24: 37 | L24: 38 | M24: 37 | N24: 41 | O24: 3.333333333 | P24: 1.666666667 | Q24: 37.66666667 | S24: 2 | T24: 460 | U24: 43.7 | V24: 41.84494001 | W24: 41.84494001 | X24: -0.3641912843 | Y24: -0.3641912843 | AA24: 16 | AC24: 16 | AD24: 39.19872174 | AE24: 38.51257844 | AJ24: 16 | AK24: 3.44124758 | AM24: 16 | AN24: 39.19872174 | AO24: 38.51257844 | AT24: 16 | AU24: 3.44124758 | AW24: 16 | AX24: 28.17976198 | AY24: 19.90368212 | AZ24: 39.89708943 | BB24: 16 | BC24: 37.66666667 | BD24: 43.7
D25: 17 | E25: 34 | G25: 31 | H25: 33 | J25: 35 | K25: 33 | L25: 34 | M25: 33 | N25: 35 | O25: 1.5 | P25: 2.5 | Q25: 33.5 | S25: 2 | T25: 477 | U25: 45.315 | V25: 38.8495445 | W25: 38.8495445 | X25: -1.269318809 | Y25: -1.269318809 | AA25: 17 | AC25: 17 | AD25: 16.17361052 | AE25: 4.158270054 | AJ25: 17 | AK25: 41.80211481 | AM25: 17 | AN25: 16.17361052 | AO25: 4.158270054 | AT25: 17 | AU25: 41.80211481 | AW25: 17 | AX25: 11.62712646 | AY25: 2.149035164 | AZ25: 62.90733257 | BB25: 17 | BC25: 33.5 | BD25: 45.315
D26: 18 | F26: 30 | G26: 30 | H26: 36 | I26: 30 | M26: 35 | O26: 3.8 | P26: 2.2 | Q26: 32.2 | S26: 2 | T26: 373.4 | U26: 35.473 | V26: 37.9149811 | W26: 37.9149811 | X26: 0.4794175053 | Y26: 0.4794175053 | AA26: 18 | AC26: 18 | AD26: -1.412273767 | AE26: 0.5463925031 | AJ26: 18 | AK26: 5.963271708 | AM26: 18 | AN26: -1.412273767 | AO26: 0.5463925031 | AT26: 18 | AU26: 5.963271708 | AW26: 18 | AX26: -1.015276438 | AY26: 0.2823810592 | AZ26: 3.650337772 | BB26: 18 | BC26: 32.2 | BD26: 35.473
D27: 19 | E27: 32 | F27: 37 | H27: 34 | I27: 33 | J27: 34 | L27: 34 | M27: 34 | O27: 3 | P27: 2 | Q27: 34 | S27: 2 | T27: 234.5 | U27: 22.2775 | V27: 39.20899196 | W27: 39.20899196 | X27: 3.324044411 | Y27: 3.324044411 | AA27: 19 | AC27: 19 | AD27: -38.35712622 | AE27: 6.447453728 | AJ27: 19 | AK27: 286.67542 | AM27: 19 | AN27: -38.35712622 | AO27: 6.447453728 | AT27: 19 | AU27: 286.67542 | AW27: 19 | AX27: -27.57474323 | AY27: 3.332107967 | AZ27: 228.1938256 | BB27: 19 | BC27: 34 | BD27: 22.2775
D28: 20 | E28: 34 | F28: 37 | G28: 39 | I28: 36 | J28: 35 | K28: 38 | L28: 38 | N28: 36 | O28: 2.375 | P28: 2.625 | Q28: 36.625 | S28: 2 | T28: 413 | U28: 39.235 | V28: 41.09609113 | W28: 41.09609113 | X28: 0.3653753362 | Y28: 0.3653753362 | AA28: 20 | AC28: 20 | AD28: 9.561043427 | AE28: 26.66879301 | AJ28: 20 | AK28: 3.463660194 | AM28: 20 | AN28: 9.561043427 | AO28: 26.66879301 | AT28: 20 | AU28: 3.463660194 | AW28: 20 | AX28: 6.873385563 | AY28: 13.78269646 | AZ28: 3.427734857 | BB28: 20 | BC28: 36.625 | BD28: 39.235
B29: 41 | C29: 22 | D29: 21 | E29: 38 | F29: 39 | H29: 22 | I29: 36 | J29: 38 | K29: 36 | L29: 41 | M29: 37 | N29: 38 | O29: 4.888888889 | P29: 14.11111111 | Q29: 36.11111111 | S29: 2 | T29: 457 | U29: 43.415 | V29: 40.72665902 | W29: 40.72665902 | X29: -0.5277836611 | Y29: -0.5277836611 | AA29: 21 | AC29: 21 | AD29: 28.0478544 | AE29: 21.62524158 | AJ29: 21 | AK29: 7.227177237 | AM29: 21 | AN29: 28.0478544 | AO29: 21.62524158 | AT29: 21 | AU29: 7.227177237 | AW29: 21 | AX29: 20.16346008 | AY29: 11.17613911 | AZ29: 36.37795829 | BB29: 21 | BC29: 36.11111111 | BD29: 43.415
D30: 22 | E30: 34 | G30: 34 | I30: 33 | K30: 35 | L30: 34 | O30: 1 | P30: 1 | Q30: 34 | S30: 2 | T30: 362.9 | U30: 34.4755 | V30: 39.20899196 | W30: 39.20899196 | X30: 0.929294213 | Y30: 0.929294213 | AA30: 22 | AC30: 22 | AD30: -7.384163767 | AE30: 6.447453728 | AJ30: 22 | AK30: 22.40594615 | AM30: 22 | AN30: -7.384163767 | AO30: 6.447453728 | AT30: 22 | AU30: 22.40594615 | AW30: 22 | AX30: -5.30843783 | AY30: 3.332107967 | AZ30: 8.456962522 | BB30: 22 | BC30: 34 | BD30: 34.4755
D31: 23 | F31: 36 | G31: 39 | H31: 36 | J31: 37 | L31: 39 | N31: 40 | O31: 2.166666667 | P31: 1.833333333 | Q31: 37.83333333 | S31: 2 | T31: 357.8 | U31: 33.991 | V31: 41.96475583 | W31: 41.96475583 | X31: 1.565433132 | Y31: 1.565433132 | AA31: 23 | AC31: 23 | AD31: -21.61931016 | AE31: 40.608973 | AJ31: 23 | AK31: 63.58078198 | AM31: 23 | AN31: -21.61931016 | AO31: 40.608973 | AT31: 23 | AU31: 63.58078198 | AW31: 23 | AX31: -15.54201228 | AY31: 20.9871196 | AZ31: 11.50963783 | BB31: 23 | BC31: 37.83333333 | BD31: 33.991
B32: 40 | D32: 24 | E32: 29 | G32: 40 | H32: 26 | J32: 28 | K32: 28 | L32: 30 | M32: 28 | N32: 28 | O32: 10.375 | P32: 3.625 | Q32: 29.625 | S32: 1 | T32: 312.5 | U32: 29.6875 | V32: 36.06382668 | W32: 36.06382668 | X32: 1.251820756 | Y32: 1.251820756 | AA32: 24 | AC32: 24 | AD32: 14.1285998 | AE32: 3.370221585 | AJ32: 24 | AK32: 40.65754194 | AM32: 24 | AN32: 14.1285998 | AO32: 3.370221585 | AT32: 24 | AU32: 40.65754194 | AW32: 24 | AX32: 10.15697865 | AY32: 1.741763907 | AZ32: 59.22973532 | BB32: 24 | BC32: 29.625 | BD32: 29.6875
D33: 25 | E33: 28 | F33: 26 | H33: 24 | I33: 26 | J33: 26 | L33: 26 | M33: 29 | N33: 25 | O33: 2.75 | P33: 2.25 | Q33: 26.25 | S33: 1 | T33: 312.8 | U33: 29.716 | V33: 33.63755632 | W33: 33.63755632 | X33: 0.7698924229 | Y33: 0.7698924229 | AA33: 25 | AC33: 25 | AD33: 39.95438083 | AE33: 27.15260679 | AJ33: 25 | AK33: 15.37860398 | AM33: 25 | AN33: 39.95438083 | AO33: 27.15260679 | AT33: 25 | AU33: 15.37860398 | AW33: 25 | AX33: 28.72300146 | AY33: 14.03273621 | AZ33: 58.79187069 | BB33: 25 | BC33: 26.25 | BD33: 29.716
D34: 26 | F34: 38 | G34: 34 | H34: 38 | I34: 37 | J34: 37 | K34: 36 | L34: 37 | M34: 35 | N34: 36 | O34: 1.555555556 | P34: 2.444444444 | Q34: 36.44444444 | S34: 2 | T34: 458 | U34: 43.51 | V34: 40.96629066 | W34: 40.96629066 | X34: -0.499389117 | Y34: -0.499389117 | AA34: 26 | AC34: 26 | AD34: 30.5317705 | AE34: 24.83654922 | AJ34: 26 | AK34: 6.470457216 | AM34: 26 | AN34: 30.5317705 | AO34: 24.83654922 | AT34: 26 | AU34: 6.470457216 | AW34: 26 | AX34: 21.94913475 | AY34: 12.83577471 | AZ34: 37.532952 | BB34: 26 | BC34: 36.44444444 | BD34: 43.51
D35: 27 | E35: 33 | F35: 32 | G35: 30 | H35: 31 | I35: 32 | L35: 32 | N35: 31 | O35: 1.428571429 | P35: 1.571428571 | Q35: 31.57142857 | S35: 2 | T35: 433 | U35: 41.135 | V35: 37.4631043 | W35: 37.4631043 | X35: -0.7208782558 | Y35: -0.7208782558 | AA35: 27 | AC35: 27 | AD35: 0.4149523557 | AE35: 0.01223506872 | AJ35: 27 | AK35: 13.48281807 | AM35: 27 | AN35: 0.4149523557 | AO35: 0.01223506872 | AT35: 27 | AU35: 13.48281807 | AW35: 27 | AX35: 0.2983071411 | AY35: 0.006323204739 | AZ35: 14.07310914 | BB35: 27 | BC35: 31.57142857 | BD35: 41.135
D36: 28 | E36: 34 | G36: 36 | H36: 32 | J36: 36 | M36: 34 | N36: 34 | O36: 1.666666667 | P36: 2.333333333 | Q36: 34.33333333 | S36: 2 | T36: 467 | U36: 44.365 | V36: 39.4486236 | W36: 39.4486236 | X36: -0.9651986679 | Y36: -0.9651986679 | AA36: 28 | AC36: 28 | AD36: 20.05423127 | AE36: 8.251353954 | AJ36: 28 | AK36: 24.17075689 | AM36: 28 | AN36: 20.05423127 | AO36: 8.251353954 | AT36: 28 | AU36: 24.17075689 | AW36: 28 | AX36: 14.41688501 | AY36: 4.264381477 | AZ36: 48.74014543 | BB36: 28 | BC36: 34.33333333 | BD36: 44.365
D37: 29 | E37: 28 | F37: 27 | G37: 31 | H37: 31 | I37: 29 | J37: 28 | M37: 28 | N37: 33 | O37: 3.625 | P37: 2.375 | Q37: 29.375 | S37: 1 | T37: 377.4 | U37: 35.853 | V37: 35.88410295 | W37: 35.88410295 | X37: 0.00610623023 | Y37: 0.00610623023 | AA37: 29 | AC37: 29 | AD37: 3.192520672 | AE37: 4.350629748 | AJ37: 29 | AK37: 0.0009673935164 | AM37: 29 | AN37: 3.192520672 | AO37: 4.350629748 | AT37: 29 | AU37: 0.0009673935164 | AW37: 29 | AX37: 2.295086897 | AY37: 2.24844856 | AZ37: 2.342692629 | BB37: 29 | BC37: 29.375 | BD37: 35.853
B38: 36 | C38: 20 | D38: 30 | H38: 34 | J38: 20 | L38: 33 | N38: 36 | O38: 5.25 | P38: 10.75 | Q38: 30.75 | S38: 1 | T38: 366.1 | U38: 34.7795 | V38: 36.87258347 | W38: 36.87258347 | X38: 0.4109208105 | Y38: 0.4109208105 | AA38: 30 | AC38: 30 | AD38: 1.851026641 | AE38: 0.5052598501 | AJ38: 30 | AK38: 4.3809984 | AM38: 30 | AN38: 1.851026641 | AO38: 0.5052598501 | AT38: 30 | AU38: 4.3809984 | AW38: 30 | AX38: 1.330693652 | AY38: 0.2611232966 | AZ38: 6.781262407 | BB38: 30 | BC38: 30.75 | BD38: 34.7795
D39: 31 | F39: 32 | G39: 34 | H39: 34 | I39: 30 | L39: 30 | M39: 32 | N39: 32 | O39: 2 | P39: 2 | Q39: 32 | S39: 2 | T39: 353.7 | U39: 33.6015 | V39: 37.77120212 | W39: 37.77120212 | X39: 0.818609196 | Y39: 0.818609196 | AA39: 31 | AC39: 31 | AD39: -2.039238869 | AE39: 0.2907190337 | AJ39: 31 | AK39: 17.38641576 | AM39: 31 | AN39: -2.039238869 | AO39: 0.2907190337 | AT39: 31 | AU39: 17.38641576 | AW39: 31 | AX39: -1.465998466 | AY39: 0.1502464771 | AZ39: 14.30417235 | BB39: 31 | BC39: 32 | BD39: 33.6015
D40: 32 | E40: 30 | G40: 32 | I40: 30 | L40: 30 | M40: 32 | N40: 30 | O40: 1.333333333 | P40: 0.6666666667 | Q40: 30.66666667 | S40: 1 | T40: 454 | U40: 43.13 | V40: 36.81267556 | W40: 36.81267556 | X40: -1.240237249 | Y40: -1.240237249 | AA40: 32 | AC40: 32 | AD40: -4.56351295 | AE40: 0.6306736823 | AJ40: 32 | AK40: 39.90858812 | AM40: 32 | AN40: -4.56351295 | AO40: 0.6306736823 | AT40: 32 | AU40: 39.90858812 | AW40: 32 | AX40: -3.280686284 | AY40: 0.3259384077 | AZ40: 33.02127714 | BB40: 32 | BC40: 30.66666667 | BD40: 43.13
D41: 33 | F41: 34 | G41: 33 | H41: 32 | I41: 34 | J41: 36 | K41: 30 | L41: 32 | M41: 35 | N41: 33 | O41: 2.777777778 | P41: 3.222222222 | Q41: 33.22222222 | S41: 2 | T41: 423 | U41: 40.185 | V41: 38.64985147 | W41: 38.64985147 | X41: -0.3013852478 | Y41: -0.3013852478 | AA41: 33 | AC41: 33 | AD41: 4.934427639 | AE41: 3.102550729 | AJ41: 33 | AK41: 2.356681018 | AM41: 33 | AN41: 4.934427639 | AO41: 3.102550729 | AT41: 33 | AU41: 2.356681018 | AW41: 33 | AX41: 3.54733497 | AY41: 1.603428957 | AZ41: 7.847922 | BB41: 33 | BC41: 33.22222222 | BD41: 40.185
C42: 18 | D42: 34 | E42: 34 | G42: 18 | I42: 32 | J42: 30 | L42: 32 | M42: 30 | N42: 34 | O42: 4 | P42: 12 | Q42: 30 | S42: 1 | T42: 398.8 | U42: 37.886 | V42: 36.33341228 | W42: 36.33341228 | X42: -0.3048089653 | Y42: -0.3048089653 | AA42: 34 | AC42: 34 | AD42: -0.7339349913 | AE42: 2.13398434 | AJ42: 34 | AK42: 2.41052864 | AM42: 34 | AN42: -0.7339349913 | AO42: 2.13398434 | AT42: 34 | AU42: 2.41052864 | AW42: 34 | AX42: -0.5276221378 | AY42: 1.10286425 | AZ42: 0.2524201145 | BB42: 34 | BC42: 30 | BD42: 37.886
D43: 35 | F43: 36 | H43: 35 | I43: 34 | K43: 31 | M43: 34 | N43: 36 | O43: 1.666666667 | P43: 3.333333333 | Q43: 34.33333333 | S43: 2 | T43: 448 | U43: 42.56 | V43: 39.4486236 | W43: 39.4486236 | X43: -0.6108353209 | Y43: -0.6108353209 | AA43: 35 | AC43: 35 | AD43: 14.86933807 | AE43: 8.251353954 | AJ43: 35 | AK43: 9.68066309 | AM43: 35 | AN43: 14.86933807 | AO43: 8.251353954 | AT43: 35 | AU43: 9.68066309 | AW43: 35 | AX43: 10.68949162 | AY43: 4.264381477 | AZ43: 26.79526486 | BB43: 35 | BC43: 34.33333333 | BD43: 42.56
D44: 36 | AA44: 36 | AC44: 36 | AJ44: 36 | AM44: 36 | AT44: 36 | AW44: 36 | BB44: 36
D45: 37 | AA45: 37 | AC45: 37 | AJ45: 37 | AM45: 37 | AT45: 37 | AW45: 37 | BB45: 37
D46: 38 | AA46: 38 | AC46: 38 | AJ46: 38 | AM46: 38 | AT46: 38 | AW46: 38 | BB46: 38
D47: 39 | AA47: 39 | AC47: 39 | AJ47: 39 | AM47: 39 | AT47: 39 | AW47: 39 | BB47: 39
D48: 40 | AA48: 40 | AC48: 40 | AJ48: 40 | AM48: 40 | AT48: 40 | AW48: 40 | BB48: 40
D49: 41 | AA49: 41 | AC49: 41 | AJ49: 41 | AM49: 41 | AT49: 41 | AW49: 41 | BB49: 41
D50: 42 | AA50: 42 | AC50: 42 | AJ50: 42 | AM50: 42 | AT50: 42 | AW50: 42 | BB50: 42
D51: 43 | AA51: 43 | AC51: 43 | AJ51: 43 | AM51: 43 | AT51: 43 | AW51: 43 | BB51: 43
D52: 44 | AA52: 44 | AC52: 44 | AJ52: 44 | AM52: 44 | AT52: 44 | AW52: 44 | BB52: 44
D53: 45 | AA53: 45 | AC53: 45 | AJ53: 45 | AM53: 45 | AT53: 45 | AW53: 45 | BB53: 45
D54: 46 | AA54: 46 | AC54: 46 | AJ54: 46 | AM54: 46 | AT54: 46 | AW54: 46 | BB54: 46
D55: 47 | AA55: 47 | AC55: 47 | AJ55: 47 | AM55: 47 | AT55: 47 | AW55: 47 | BB55: 47
D56: 48 | AA56: 48 | AC56: 48 | AJ56: 48 | AM56: 48 | AT56: 48 | AW56: 48 | BB56: 48
D57: 49 | AA57: 49 | AC57: 49 | AJ57: 49 | AM57: 49 | AT57: 49 | AW57: 49 | BB57: 49
D58: 50 | AA58: 50 | AC58: 50 | AJ58: 50 | AM58: 50 | AT58: 50 | AW58: 50 | BB58: 50
Q59: =IFERROR(IFERROR(SUM(R9:R58)/COUNT(R9:R58),SUM(Q9:Q58)/COUNT(Q9:Q58)),"") -> 31.46081633 | U59: =IFERROR(SUM(U9:U58)/COUNT(U9:U58),"") -> 37.38358571 | W59: =IFERROR(SUM(W9:W58)/COUNT(W9:W58),"") -> 37.38358571 | AD59: =IF(SUM(AD9:AD58)=0,"",SUM(AD9:AD58)) -> 373.119459 | AE59: =IF(SUM(AE9:AE58)=0,"",SUM(AE9:AE58)) -> 519.0180761 | AJ59: Sт | AK59: =IF(SQRT(SUM(AK9:AK58)/(COUNT(AK9:AK58)-2))=0,"",SQRT(SUM(AK9:AK58)/(COUNT(AK9:AK58)-2))) -> 5.093641922 | AN59: =IF(SUM(AN9:AN58)=0,"",SUM(AN9:AN58)) -> 373.119459 | AO59: =IF(SUM(AO9:AO58)=0,"",SUM(AO9:AO58)) -> 519.0180761 | AT59: Sт | AU59: =IF(SQRT(SUM(AU9:AU58)/(COUNT(AU9:AU58)-2))=0,"",SQRT(SUM(AU9:AU58)/(COUNT(AU9:AU58)-2))) -> 5.093641922 | AX59: =IF(SUM(AX9:AX58)=0,"",SUM(AX9:AX58)) -> 268.2336841 | AY59: =IF(SUM(AY9:AY58)=0,"",SUM(AY9:AY58)) -> 268.2336841 | AZ59: =IF(SUM(AZ9:AZ58)=0,"",SUM(AZ9:AZ58)) -> 1124.424889
Q60: ср.зн. H | U60: cр.зн Rф (Мпа) | AJ60: Sп < 1,5 Sт | AT60: Sп < 1,5 Sт | AY60: =IFERROR(SQRT(AY59),"") -> 16.37784125 | AZ60: =IFERROR(SQRT(AZ59),"") -> 33.53244532
AJ61: Sп | AK61: =IFERROR((AK59*1.5)-(SQRT(SUM(AK9:AK58)/(COUNT(AK9:AK58)-1))),"") -> 2.622286495 | AT61: Sп | AU61: =IFERROR((AU59*1.5)-(SQRT(SUM(AU9:AU58)/(COUNT(AU9:AU58)-1))),"") -> 2.622286495 | AY61: =IFERROR(AY60*AZ60,"") -> 549.1890663
AW62: =IFERROR(AX59/AY61,"") -> 0.4884177428
AH63: ПОГРЕШНОСТЬ | AW63: r < 0,7
AH64: Sт | AI64: =IF(AU59=0,"",AU59) -> 5.093641922 | AJ64: =IFERROR(AI64/AI65*100,"") -> 13.62534338 | AN64: < 12%
AH65: Rф | AI65: =IF(W59=0,"",W59) -> 37.38358571 | AN65: > 15%
AH67: Н | AI67: RH
AH68: 5 | AI68: =IFERROR($AQ$11+$AR$9*$AH$68,"") -> 18.36103924
AH69: 10 | AI69: =IFERROR($AQ$11+$AR$9*$AH$69,"") -> 21.95551385
AH70: 15 | AI70: =IFERROR($AQ$11+$AR$9*$AH$70,"") -> 25.54998846
AH71: 20 | AI71: =IFERROR($AQ$11+$AR$9*$AH$71,"") -> 29.14446306
AH72: 25 | AI72: =IFERROR($AQ$11+$AR$9*$AH$72,"") -> 32.73893767
AH73: 30 | AI73: =IFERROR($AQ$11+$AR$9*$AH$73,"") -> 36.33341228
AH74: 35 | AI74: =IFERROR($AQ$11+$AR$9*$AH$74,"") -> 39.92788688
AH75: 40 | AI75: =IFERROR($AQ$11+$AR$9*$AH$75,"") -> 43.52236149
AH76: 45 | AI76: =IFERROR($AQ$11+$AR$9*$AH$76,"") -> 47.1168361
AH77: 50 | AI77: =IFERROR($AQ$11+$AR$9*$AH$77,"") -> 50.7113107
